[Event "Early-Titled-Tuesday-Blitz-March-05-2024"]
[Site "Chess.com"]
[Date "2024.03.05"]
[Round "3"]
[White "Iskusnyh"]
[Black "TheKingDoctor"]
[Result "1-0"]
[WhiteElo "2700"]
[BlackElo "2368"]
[TimeControl "180+1"]
[EndTime "8:32:16 PST"]
[Termination "Iskusnyh won on time"]

1. d4 {[%clk 0:03:00.9]} 1... d5 {[%clk 0:02:58.3]} 2. c4 {[%clk 0:03:00.9]}
2... c6 {[%clk 0:02:58]} 3. Nf3 {[%clk 0:03:00.9]} 3... Nf6 {[%clk 0:02:58.3]}
4. e3 {[%clk 0:03:01.3]} 4... g6 {[%clk 0:02:55.1]} 5. Nc3 {[%clk 0:02:58.4]}
5... Bg7 {[%clk 0:02:55.7]} 6. Be2 {[%clk 0:02:58.8]} 6... dxc4 {[%clk
0:02:55.4]} 7. O-O {[%clk 0:02:53]} 7... O-O {[%clk 0:02:54.8]} 8. Bxc4 {[%clk
0:02:52]} 8... Bg4 {[%clk 0:02:55.3]} 9. Be2 {[%clk 0:02:48]} 9... Nbd7 {[%clk
0:02:55.8]} 10. Qc2 {[%clk 0:02:40.3]} 10... Bxf3 {[%clk 0:02:51.9]} 11. Bxf3
{[%clk 0:02:39.8]} 11... e5 {[%clk 0:02:52.8]} 12. Rd1 {[%clk 0:02:38.1]} 12...
exd4 {[%clk 0:02:50]} 13. exd4 {[%clk 0:02:35.4]} 13... Nb6 {[%clk 0:02:47.5]}
14. Bg5 {[%clk 0:02:27.1]} 14... h6 {[%clk 0:02:47.4]} 15. Bh4 {[%clk 0:02:26]}
15... Qd6 {[%clk 0:02:26.5]} 16. a3 {[%clk 0:02:18.5]} 16... Rfe8 {[%clk
0:02:24.3]} 17. Qb3 {[%clk 0:02:09.8]} 17... Qe6 {[%clk 0:01:54.8]} 18. Qc2
{[%clk 0:01:53.3]} 18... Rad8 {[%clk 0:01:55.2]} 19. h3 {[%clk 0:01:47.9]} 19...
Qd6 {[%clk 0:01:33]} 20. Rac1 {[%clk 0:01:40.5]} 20... Rd7 {[%clk 0:01:25.7]}
21. Rd3 {[%clk 0:01:18.6]} 21... Nbd5 {[%clk 0:01:22.2]} 22. Ne2 {[%clk
0:01:13.3]} 22... Nf4 {[%clk 0:01:10.6]} 23. Nxf4 {[%clk 0:01:11.5]} 23... Qxf4
{[%clk 0:01:11.5]} 24. Bg3 {[%clk 0:01:10.7]} 24... Qf5 {[%clk 0:01:10.3]} 25.
Rcd1 {[%clk 0:00:41.5]} 25... Red8 {[%clk 0:01:09.8]} 26. Qa4 {[%clk 0:00:36.2]}
26... a6 {[%clk 0:01:09]} 27. Be5 {[%clk 0:00:32.9]} 27... h5 {[%clk 0:01:04.4]}
28. Qb3 {[%clk 0:00:25.8]} 28... Nd5 {[%clk 0:01:02]} 29. Bxd5 {[%clk
0:00:25.7]} 29... Rxd5 {[%clk 0:00:59.5]} 30. Bxg7 {[%clk 0:00:24.4]} 30... Kxg7
{[%clk 0:00:59.7]} 31. Qxb7 {[%clk 0:00:24.1]} 31... c5 {[%clk 0:00:58.6]} 32.
Rf3 {[%clk 0:00:22.5]} 32... Qe6 {[%clk 0:00:57.5]} 33. Re3 {[%clk 0:00:22.6]}
33... Qf6 {[%clk 0:00:57.1]} 34. Rf3 {[%clk 0:00:21.9]} 34... Qe6 {[%clk
0:00:57.3]} 35. Re3 {[%clk 0:00:22]} 35... Qf6 {[%clk 0:00:55.3]} 36. Rde1
{[%clk 0:00:22.9]} 36... R8d7 {[%clk 0:00:47.7]} 37. Qa8 {[%clk 0:00:18.5]}
37... Rd8 {[%clk 0:00:45.5]} 38. Qb7 {[%clk 0:00:17.7]} 38... R8d7 {[%clk
0:00:45.5]} 39. Qb3 {[%clk 0:00:17.6]} 39... cxd4 {[%clk 0:00:44.4]} 40. Rf3
{[%clk 0:00:18]} 40... Rf5 {[%clk 0:00:42]} 41. Rxf5 {[%clk 0:00:17.8]} 41...
Qxf5 {[%clk 0:00:41.8]} 42. Rd1 {[%clk 0:00:16.9]} 42... Qe4 {[%clk 0:00:33.5]}
43. Qd3 {[%clk 0:00:16.5]} 43... Qe5 {[%clk 0:00:31.7]} 44. Qxa6 {[%clk
0:00:14.8]} 44... h4 {[%clk 0:00:25.9]} 45. Qd3 {[%clk 0:00:14.5]} 45... Qd5
{[%clk 0:00:15.3]} 46. a4 {[%clk 0:00:14.4]} 46... Qa2 {[%clk 0:00:14.8]} 47. b3
{[%clk 0:00:13.9]} 47... Qb2 {[%clk 0:00:14.5]} 48. Rd2 {[%clk 0:00:12.8]} 48...
Qa1+ {[%clk 0:00:14]} 49. Kh2 {[%clk 0:00:12.9]} 49... Rd5 {[%clk 0:00:14.5]}
50. Qc4 {[%clk 0:00:12]} 50... Rd6 {[%clk 0:00:12.4]} 51. a5 {[%clk 0:00:11.8]}
51... Qe1 {[%clk 0:00:11.1]} 52. Qe2 {[%clk 0:00:10.9]} 52... Qa1 {[%clk
0:00:04.9]} 53. Qe5+ {[%clk 0:00:10.6]} 53... Rf6 {[%clk 0:00:05.6]} 54. Qxd4
{[%clk 0:00:10.5]} 54... Qe1 {[%clk 0:00:04.6]} 55. b4 {[%clk 0:00:09.4]} 55...
g5 {[%clk 0:00:03.7]} 56. a6 {[%clk 0:00:09]} 56... Kg6 {[%clk 0:00:04.2]} 57.
a7 {[%clk 0:00:08.8]} 1-0

[Event "Early-Titled-Tuesday-Blitz-March-05-2024"]
[Site "Chess.com"]
[Date "2024.03.05"]
[Round "3"]
[White "viniciusrego"]
[Black "GeorgiosSouleidis"]
[Result "1/2-1/2"]
[WhiteElo "2379"]
[BlackElo "2694"]
[TimeControl "180+1"]
[EndTime "8:32:21 PST"]
[Termination "Game drawn - insufficient material"]

1. Nf3 {[%clk 0:03:00.9]} 1... Nf6 {[%clk 0:02:58.3]} 2. c4 {[%clk 0:03:00.9]}
2... g6 {[%clk 0:02:58.7]} 3. Nc3 {[%clk 0:03:00.7]} 3... Bg7 {[%clk 0:02:59.4]}
4. e4 {[%clk 0:03:01]} 4... d6 {[%clk 0:03:00.2]} 5. d4 {[%clk 0:03:01.5]} 5...
O-O {[%clk 0:03:00.9]} 6. Be2 {[%clk 0:03:02.1]} 6... e5 {[%clk 0:03:01.5]} 7.
d5 {[%clk 0:03:02.6]} 7... a5 {[%clk 0:03:01.4]} 8. Bg5 {[%clk 0:03:02.8]} 8...
h6 {[%clk 0:03:02.1]} 9. Bh4 {[%clk 0:03:01.8]} 9... Na6 {[%clk 0:03:02.5]} 10.
Nd2 {[%clk 0:03:01.8]} 10... Bd7 {[%clk 0:03:01.8]} 11. O-O {[%clk 0:02:51]}
11... Qe8 {[%clk 0:03:01.7]} 12. b3 {[%clk 0:02:50.9]} 12... Nh7 {[%clk
0:03:00.4]} 13. a3 {[%clk 0:02:48.8]} 13... h5 {[%clk 0:03:00]} 14. f3 {[%clk
0:02:49.2]} 14... Bh6 {[%clk 0:02:58.3]} 15. Bf2 {[%clk 0:02:43.1]} 15... f5
{[%clk 0:02:55.4]} 16. Rb1 {[%clk 0:02:39.4]} 16... Nc5 {[%clk 0:02:52]} 17. b4
{[%clk 0:02:37.4]} 17... axb4 {[%clk 0:02:52.9]} 18. axb4 {[%clk 0:02:38.2]}
18... Na4 {[%clk 0:02:53.2]} 19. Nxa4 {[%clk 0:02:33.7]} 19... Rxa4 {[%clk
0:02:45.3]} 20. c5 {[%clk 0:02:28.1]} 20... Ra2 {[%clk 0:02:42.5]} 21. Nc4
{[%clk 0:02:22.6]} 21... Ba4 {[%clk 0:02:23.5]} 22. Qe1 {[%clk 0:02:21.1]} 22...
Qe7 {[%clk 0:02:06.5]} 23. b5 {[%clk 0:02:02.3]} 23... fxe4 {[%clk 0:01:59.8]}
24. cxd6 {[%clk 0:01:44.2]} 24... cxd6 {[%clk 0:01:57.8]} 25. fxe4 {[%clk
0:01:43.5]} 25... Bc2 {[%clk 0:01:54.5]} 26. Rb2 {[%clk 0:00:56.2]} 26... Rxb2
{[%clk 0:01:51.4]} 27. Nxb2 {[%clk 0:00:57.1]} 27... Bxe4 {[%clk 0:01:51.4]} 28.
Bxh5 {[%clk 0:00:54.9]} 28... Bxg2 {[%clk 0:01:31.9]} 29. Kxg2 {[%clk
0:00:53.3]} 29... gxh5 {[%clk 0:01:31.9]} 30. Qe4 {[%clk 0:00:50.2]} 30... Kh8
{[%clk 0:01:25.2]} 31. Kh1 {[%clk 0:00:39.5]} 31... Ng5 {[%clk 0:01:16.8]} 32.
Qg6 {[%clk 0:00:39.8]} 32... Qg7 {[%clk 0:00:59.4]} 33. Qxh5 {[%clk 0:00:39.8]}
33... Ne4 {[%clk 0:00:55.8]} 34. Nd3 {[%clk 0:00:35]} 34... Qh7 {[%clk
0:00:38.9]} 35. Qe2 {[%clk 0:00:26]} 35... Nxf2+ {[%clk 0:00:34.7]} 36. Rxf2
{[%clk 0:00:26.9]} 36... Rxf2 {[%clk 0:00:28.5]} 37. Nxf2 {[%clk 0:00:27.8]}
37... Bf4 {[%clk 0:00:28.9]} 38. Ng4 {[%clk 0:00:25.5]} 38... Qb1+ {[%clk
0:00:27]} 39. Kg2 {[%clk 0:00:23.8]} 39... Qg6 {[%clk 0:00:24.8]} 40. h3 {[%clk
0:00:23.5]} 40... e4 {[%clk 0:00:20]} 41. Qb2+ {[%clk 0:00:22.6]} 41... Kh7
{[%clk 0:00:18.6]} 42. Qc2 {[%clk 0:00:22]} 42... e3 {[%clk 0:00:13.4]} 43.
Qxg6+ {[%clk 0:00:19.7]} 43... Kxg6 {[%clk 0:00:13.5]} 44. Kf3 {[%clk
0:00:20.6]} 44... e2 {[%clk 0:00:11.8]} 45. Kxe2 {[%clk 0:00:20.5]} 45... Kf5
{[%clk 0:00:12.4]} 46. Kf3 {[%clk 0:00:21.2]} 46... Bg5 {[%clk 0:00:12.2]} 47.
Ke2 {[%clk 0:00:18.4]} 47... Ke4 {[%clk 0:00:11.8]} 48. Kf2 {[%clk 0:00:13.8]}
48... Kxd5 {[%clk 0:00:11.9]} 49. Kg3 {[%clk 0:00:13.7]} 49... Ke4 {[%clk
0:00:11.8]} 50. h4 {[%clk 0:00:14.2]} 50... Bf4+ {[%clk 0:00:12.4]} 51. Kh3
{[%clk 0:00:14.5]} 51... d5 {[%clk 0:00:13.3]} 52. h5 {[%clk 0:00:12.9]} 52...
d4 {[%clk 0:00:11.7]} 53. h6 {[%clk 0:00:13.5]} 53... Bxh6 {[%clk 0:00:10.8]}
54. Nxh6 {[%clk 0:00:14.4]} 54... d3 {[%clk 0:00:11.1]} 55. Kg2 {[%clk
0:00:11.4]} 55... d2 {[%clk 0:00:09.8]} 56. Ng4 {[%clk 0:00:12.1]} 56... Kd3
{[%clk 0:00:06.1]} 57. Nf2+ {[%clk 0:00:08.9]} 57... Ke2 {[%clk 0:00:06.6]} 58.
b6 {[%clk 0:00:08.1]} 58... Ke3 {[%clk 0:00:05.8]} 59. Kf1 {[%clk 0:00:08.1]}
59... Kd4 {[%clk 0:00:05.5]} 60. Nd1 {[%clk 0:00:08.3]} 60... Kc5 {[%clk
0:00:06.4]} 61. Ke2 {[%clk 0:00:09.1]} 61... Kxb6 {[%clk 0:00:07.1]} 62. Kxd2
{[%clk 0:00:10]} 62... Kc5 {[%clk 0:00:07.6]} 63. Kc3 {[%clk 0:00:10]} 63... b5
{[%clk 0:00:08.5]} 64. Nb2 {[%clk 0:00:10.5]} 64... b4+ {[%clk 0:00:09.1]} 65.
Kb3 {[%clk 0:00:11.1]} 65... Kd6 {[%clk 0:00:09.7]} 66. Nd3 {[%clk 0:00:11.7]}
66... Ke7 {[%clk 0:00:10.2]} 67. Nxb4 {[%clk 0:00:12.6]} 1/2-1/2

[Event "Early-Titled-Tuesday-Blitz-March-05-2024"]
[Site "Chess.com"]
[Date "2024.03.05"]
[Round "3"]
[White "only_strong_moves"]
[Black "Josgar05"]
[Result "0-1"]
[WhiteElo "2562"]
[BlackElo "2389"]
[TimeControl "180+1"]
[EndTime "8:32:22 PST"]
[Termination "Josgar05 won on time"]

1. d4 {[%clk 0:02:49.5]} 1... d5 {[%clk 0:02:54.4]} 2. Nc3 {[%clk 0:02:48.7]}
2... c5 {[%clk 0:02:49.9]} 3. dxc5 {[%clk 0:02:44.5]} 3... Nf6 {[%clk
0:02:49.6]} 4. Bf4 {[%clk 0:02:42.3]} 4... Qa5 {[%clk 0:02:45]} 5. e3 {[%clk
0:02:39.9]} 5... Qxc5 {[%clk 0:02:41]} 6. Nb5 {[%clk 0:02:39]} 6... Na6 {[%clk
0:02:38.5]} 7. Nf3 {[%clk 0:02:38.5]} 7... Bf5 {[%clk 0:02:38]} 8. c3 {[%clk
0:02:37.3]} 8... Bd7 {[%clk 0:02:24.7]} 9. Nbd4 {[%clk 0:02:31.7]} 9... e6
{[%clk 0:02:21.2]} 10. Bd3 {[%clk 0:02:30.7]} 10... Bd6 {[%clk 0:02:19.3]} 11.
O-O {[%clk 0:02:28.9]} 11... Bxf4 {[%clk 0:02:18.6]} 12. exf4 {[%clk 0:02:24.8]}
12... Qc7 {[%clk 0:02:17.5]} 13. g3 {[%clk 0:02:22.8]} 13... Nc5 {[%clk
0:02:18.2]} 14. Bc2 {[%clk 0:02:22.8]} 14... O-O {[%clk 0:02:16.4]} 15. Re1
{[%clk 0:02:23.4]} 15... Rac8 {[%clk 0:02:06.9]} 16. Rc1 {[%clk 0:02:23.7]}
16... Qa5 {[%clk 0:02:06.2]} 17. a3 {[%clk 0:02:23.7]} 17... Qc7 {[%clk
0:02:05]} 18. Bb1 {[%clk 0:02:23.8]} 18... Qb6 {[%clk 0:01:58.1]} 19. Qe2 {[%clk
0:02:17.4]} 19... Rfd8 {[%clk 0:01:49.7]} 20. Ne5 {[%clk 0:02:16.1]} 20... a5
{[%clk 0:01:49.1]} 21. Kg2 {[%clk 0:02:08.9]} 21... a4 {[%clk 0:01:48.7]} 22.
Rcd1 {[%clk 0:02:04.3]} 22... Nb3 {[%clk 0:01:45.2]} 23. h3 {[%clk 0:01:51.6]}
23... Nxd4 {[%clk 0:01:43.1]} 24. Rxd4 {[%clk 0:01:52.5]} 24... Bb5 {[%clk
0:01:38.8]} 25. Qc2 {[%clk 0:01:46.9]} 25... Qxd4 {[%clk 0:01:34.8]} 26. cxd4
{[%clk 0:01:47.1]} 26... Rxc2 {[%clk 0:01:34.9]} 27. Bxc2 {[%clk 0:01:48]} 27...
Rc8 {[%clk 0:01:35.5]} 28. Rc1 {[%clk 0:01:46.1]} 28... Kf8 {[%clk 0:01:27.5]}
29. Kf3 {[%clk 0:01:46]} 29... Ke7 {[%clk 0:01:21.4]} 30. Ke3 {[%clk 0:01:45.7]}
30... g6 {[%clk 0:01:16.5]} 31. f3 {[%clk 0:01:43.2]} 31... Nh5 {[%clk
0:01:15.5]} 32. g4 {[%clk 0:01:40.5]} 32... Ng3 {[%clk 0:01:07.3]} 33. Kd2
{[%clk 0:01:32.9]} 33... Ne2 {[%clk 0:01:04.3]} 34. Re1 {[%clk 0:01:23.3]} 34...
Nxd4 {[%clk 0:01:03.9]} 35. Bd1 {[%clk 0:01:23.9]} 35... f6 {[%clk 0:00:59.4]}
36. Nd3 {[%clk 0:01:20.3]} 36... Kd6 {[%clk 0:00:58.9]} 37. Nb4 {[%clk
0:01:14.9]} 37... Bc4 {[%clk 0:00:40.8]} 38. Re3 {[%clk 0:01:12.8]} 38... b5
{[%clk 0:00:40.3]} 39. h4 {[%clk 0:01:08.6]} 39... Bb3 {[%clk 0:00:40.6]} 40.
Be2 {[%clk 0:00:58]} 40... e5 {[%clk 0:00:36.5]} 41. fxe5+ {[%clk 0:00:57.7]}
41... fxe5 {[%clk 0:00:37.4]} 42. Bd3 {[%clk 0:00:54.8]} 42... Ne6 {[%clk
0:00:34.9]} 43. Bb1 {[%clk 0:00:54.5]} 43... Nf4 {[%clk 0:00:34.6]} 44. h5
{[%clk 0:00:43.4]} 44... gxh5 {[%clk 0:00:32.5]} 45. gxh5 {[%clk 0:00:44.3]}
45... h6 {[%clk 0:00:32.9]} 46. Re1 {[%clk 0:00:43.2]} 46... Rg8 {[%clk
0:00:32.5]} 47. Bd3 {[%clk 0:00:39.5]} 47... Bc4 {[%clk 0:00:31.8]} 48. Bxc4
{[%clk 0:00:36.3]} 48... bxc4 {[%clk 0:00:32.7]} 49. Kc3 {[%clk 0:00:33.6]}
49... Rg3 {[%clk 0:00:32.7]} 50. Rf1 {[%clk 0:00:31.7]} 50... e4 {[%clk
0:00:31.1]} 51. Nc2 {[%clk 0:00:31.7]} 51... Ke5 {[%clk 0:00:29.4]} 52. Kb4
{[%clk 0:00:31.4]} 52... Rxf3 {[%clk 0:00:29.3]} 53. Rg1 {[%clk 0:00:31.3]}
53... Nd3+ {[%clk 0:00:28.6]} 54. Kxa4 {[%clk 0:00:30.9]} 54... Nxb2+ {[%clk
0:00:29]} 55. Ka5 {[%clk 0:00:30.8]} 55... d4 {[%clk 0:00:28]} 56. a4 {[%clk
0:00:30.3]} 56... d3 {[%clk 0:00:27.1]} 57. Na3 {[%clk 0:00:29.7]} 57... c3
{[%clk 0:00:26.8]} 58. Kb5 {[%clk 0:00:28.9]} 58... Rf5 {[%clk 0:00:26.6]} 59.
a5 {[%clk 0:00:29.6]} 59... Kd4+ {[%clk 0:00:26.9]} 60. Kb6 {[%clk 0:00:30.5]}
60... c2 {[%clk 0:00:26.9]} 61. a6 {[%clk 0:00:31]} 61... Nc4+ {[%clk
0:00:26.5]} 62. Nxc4 {[%clk 0:00:30.7]} 62... Kxc4 {[%clk 0:00:26.6]} 63. a7
{[%clk 0:00:31.6]} 63... Rf8 {[%clk 0:00:25.1]} 64. Rg6 {[%clk 0:00:29.2]} 64...
d2 {[%clk 0:00:23.6]} 65. Rc6+ {[%clk 0:00:23.6]} 65... Kd3 {[%clk 0:00:24]} 66.
Rd6+ {[%clk 0:00:21.7]} 66... Ke3 {[%clk 0:00:24.4]} 67. Rc6 {[%clk 0:00:21.6]}
67... c1=Q {[%clk 0:00:23.9]} 68. Rc4 {[%clk 0:00:15.1]} 68... Qxc4 {[%clk
0:00:21.8]} 0-1

[Event "Early-Titled-Tuesday-Blitz-March-05-2024"]
[Site "Chess.com"]
[Date "2024.03.05"]
[Round "3"]
[White "Boorchess"]
[Black "AlexeiShirov"]
[Result "1/2-1/2"]
[WhiteElo "2521"]
[BlackElo "2835"]
[TimeControl "180+1"]
[EndTime "8:32:23 PST"]
[Termination "Game drawn by stalemate"]

1. d4 {[%clk 0:03:00.9]} 1... d5 {[%clk 0:03:00.1]} 2. c4 {[%clk 0:03:01]} 2...
c6 {[%clk 0:03:00.2]} 3. cxd5 {[%clk 0:03:01.2]} 3... cxd5 {[%clk 0:03:00.2]} 4.
Nc3 {[%clk 0:03:01.8]} 4... Nc6 {[%clk 0:02:59.8]} 5. e4 {[%clk 0:03:01.7]} 5...
Nf6 {[%clk 0:02:51.1]} 6. f3 {[%clk 0:03:01.5]} 6... e5 {[%clk 0:02:38.5]} 7.
dxe5 {[%clk 0:03:00.9]} 7... Nxe5 {[%clk 0:02:37.9]} 8. f4 {[%clk 0:02:57.3]}
8... Bg4 {[%clk 0:02:17.9]} 9. Be2 {[%clk 0:02:47.1]} 9... Bxe2 {[%clk
0:02:07.8]} 10. Qxe2 {[%clk 0:02:45.8]} 10... Nc6 {[%clk 0:01:47.9]} 11. exd5+
{[%clk 0:02:17.3]} 11... Ne7 {[%clk 0:01:47]} 12. Qb5+ {[%clk 0:01:57.1]} 12...
Qd7 {[%clk 0:01:43.7]} 13. Qxd7+ {[%clk 0:01:17.6]} 13... Kxd7 {[%clk
0:01:43.1]} 14. Nf3 {[%clk 0:01:14]} 14... Nfxd5 {[%clk 0:01:43.6]} 15. Bd2
{[%clk 0:01:07.5]} 15... Nb4 {[%clk 0:01:21.6]} 16. O-O {[%clk 0:00:59.8]} 16...
Nec6 {[%clk 0:01:19.9]} 17. Rad1 {[%clk 0:00:53]} 17... Re8 {[%clk 0:01:17.3]}
18. a3 {[%clk 0:00:47.8]} 18... Nc2 {[%clk 0:01:14.2]} 19. Ne5+ {[%clk
0:00:36.4]} 19... Kc8 {[%clk 0:01:04]} 20. Nxc6 {[%clk 0:00:14.1]} 20... bxc6
{[%clk 0:00:58.6]} 21. Rc1 {[%clk 0:00:14.1]} 21... Nd4 {[%clk 0:00:56.2]} 22.
Kh1 {[%clk 0:00:09.2]} 22... Kb7 {[%clk 0:00:54.1]} 23. Na4 {[%clk 0:00:05.9]}
23... Nb3 {[%clk 0:00:42.1]} 24. Rc2 {[%clk 0:00:05.8]} 24... Re2 {[%clk
0:00:40.6]} 25. Rd1 {[%clk 0:00:04.9]} 25... Bd6 {[%clk 0:00:37.3]} 26. Nc3
{[%clk 0:00:01.9]} 26... Rxd2 {[%clk 0:00:33.6]} 27. Rcxd2 {[%clk 0:00:01.8]}
27... Nxd2 {[%clk 0:00:32.9]} 28. Rxd2 {[%clk 0:00:02.4]} 28... Re8 {[%clk
0:00:26.6]} 29. g3 {[%clk 0:00:02.4]} 29... Re1+ {[%clk 0:00:22.5]} 30. Kg2
{[%clk 0:00:02.6]} 30... Kc7 {[%clk 0:00:22.5]} 31. Ne2 {[%clk 0:00:01.8]} 31...
Bc5 {[%clk 0:00:20.5]} 32. Rc2 {[%clk 0:00:01.8]} 32... Bb6 {[%clk 0:00:19.7]}
33. Kf3 {[%clk 0:00:02.1]} 33... f5 {[%clk 0:00:19.4]} 34. Nc3 {[%clk
0:00:02.1]} 34... Rf1+ {[%clk 0:00:18.8]} 35. Kg2 {[%clk 0:00:02]} 35... Rg1+
{[%clk 0:00:18.5]} 36. Kh3 {[%clk 0:00:02.2]} 36... Kd6 {[%clk 0:00:18.3]} 37.
Na4 {[%clk 0:00:02.3]} 37... Bd4 {[%clk 0:00:17.2]} 38. Rd2 {[%clk 0:00:02]}
38... c5 {[%clk 0:00:16.9]} 39. Nc3 {[%clk 0:00:02.1]} 39... Kc6 {[%clk
0:00:16.6]} 40. Ne2 {[%clk 0:00:01.8]} 40... Rb1 {[%clk 0:00:16.2]} 41. Nxd4+
{[%clk 0:00:01.9]} 41... cxd4 {[%clk 0:00:16.5]} 42. Rxd4 {[%clk 0:00:02.8]}
42... Rxb2 {[%clk 0:00:16.5]} 43. Ra4 {[%clk 0:00:03.4]} 43... Rb7 {[%clk
0:00:15]} 44. Ra5 {[%clk 0:00:03.2]} 44... g6 {[%clk 0:00:14.6]} 45. g4 {[%clk
0:00:03.6]} 45... Rb3+ {[%clk 0:00:13.6]} 46. Kh4 {[%clk 0:00:03.6]} 46... fxg4
{[%clk 0:00:13.7]} 47. Kxg4 {[%clk 0:00:03.9]} 47... Rb7 {[%clk 0:00:14.3]} 48.
h4 {[%clk 0:00:03.6]} 48... Rf7 {[%clk 0:00:13.8]} 49. h5 {[%clk 0:00:03.2]}
49... gxh5+ {[%clk 0:00:13.3]} 50. Rxh5 {[%clk 0:00:04]} 50... Rg7+ {[%clk
0:00:12.4]} 51. Kf3 {[%clk 0:00:03.9]} 51... Kd6 {[%clk 0:00:11.8]} 52. a4
{[%clk 0:00:04.2]} 52... Rb7 {[%clk 0:00:11.7]} 53. a5 {[%clk 0:00:04.5]} 53...
Ke6 {[%clk 0:00:11.7]} 54. Kg4 {[%clk 0:00:04.8]} 54... Kf6 {[%clk 0:00:11.7]}
55. Rh6+ {[%clk 0:00:05.1]} 55... Kg7 {[%clk 0:00:11.8]} 56. Ra6 {[%clk
0:00:05.9]} 56... Rf7 {[%clk 0:00:11.9]} 57. Kg5 {[%clk 0:00:06.3]} 57... h6+
{[%clk 0:00:11.7]} 58. Rxh6 {[%clk 0:00:05.5]} 58... Rxf4 {[%clk 0:00:11.7]} 59.
Rg6+ {[%clk 0:00:04.8]} 59... Kf7 {[%clk 0:00:11.9]} 60. Kxf4 {[%clk 0:00:05.1]}
60... Kxg6 {[%clk 0:00:12]} 61. Ke5 {[%clk 0:00:06]} 61... Kf7 {[%clk
0:00:12.3]} 62. Kd6 {[%clk 0:00:06.7]} 62... Ke8 {[%clk 0:00:12.5]} 63. Kc7
{[%clk 0:00:07.1]} 63... Ke7 {[%clk 0:00:12.6]} 64. Kb7 {[%clk 0:00:07.6]} 64...
Kd7 {[%clk 0:00:12.9]} 65. Kxa7 {[%clk 0:00:08]} 65... Kc7 {[%clk 0:00:12.8]}
66. a6 {[%clk 0:00:08.4]} 66... Kc8 {[%clk 0:00:13.1]} 67. Ka8 {[%clk
0:00:08.7]} 67... Kc7 {[%clk 0:00:13.3]} 68. Ka7 {[%clk 0:00:09.2]} 68... Kc8
{[%clk 0:00:13.4]} 69. Kb6 {[%clk 0:00:09.5]} 69... Kb8 {[%clk 0:00:13.5]} 70.
a7+ {[%clk 0:00:09.9]} 70... Ka8 {[%clk 0:00:13.6]} 71. Ka6 {[%clk 0:00:10.5]}
1/2-1/2

[Event "Early-Titled-Tuesday-Blitz-March-05-2024"]
[Site "Chess.com"]
[Date "2024.03.05"]
[Round "3"]
[White "lluiss"]
[Black "guillembaches"]
[Result "0-1"]
[WhiteElo "2165"]
[BlackElo "2529"]
[TimeControl "180+1"]
[EndTime "8:32:24 PST"]
[Termination "guillembaches won by resignation"]

1. Nf3 {[%clk 0:03:00.9]} 1... d5 {[%clk 0:02:59.9]} 2. d4 {[%clk 0:03:00.1]}
2... e6 {[%clk 0:02:58.6]} 3. c4 {[%clk 0:03:00.4]} 3... a6 {[%clk 0:02:58.8]}
4. cxd5 {[%clk 0:02:59.8]} 4... exd5 {[%clk 0:02:59]} 5. Nc3 {[%clk 0:03:00.5]}
5... Nf6 {[%clk 0:02:59.3]} 6. Bg5 {[%clk 0:02:59.5]} 6... Be6 {[%clk
0:02:59.4]} 7. e3 {[%clk 0:02:59.1]} 7... Nbd7 {[%clk 0:02:59]} 8. Bd3 {[%clk
0:02:58.9]} 8... Bd6 {[%clk 0:02:59.3]} 9. O-O {[%clk 0:02:50.4]} 9... c6 {[%clk
0:02:59.4]} 10. e4 {[%clk 0:02:47.8]} 10... dxe4 {[%clk 0:02:57.1]} 11. Nxe4
{[%clk 0:02:48.7]} 11... Be7 {[%clk 0:02:57]} 12. Re1 {[%clk 0:02:19.4]} 12...
O-O {[%clk 0:02:47.1]} 13. Bf4 {[%clk 0:02:15.9]} 13... Nxe4 {[%clk 0:02:34.5]}
14. Bxe4 {[%clk 0:02:15]} 14... Nf6 {[%clk 0:02:34.5]} 15. Bd3 {[%clk
0:02:10.2]} 15... Bb4 {[%clk 0:02:18.4]} 16. Bd2 {[%clk 0:01:55.8]} 16... Qb6
{[%clk 0:02:07.3]} 17. Bxb4 {[%clk 0:01:04.9]} 17... Qxb4 {[%clk 0:02:08.2]} 18.
Qd2 {[%clk 0:00:58.9]} 18... Qxd2 {[%clk 0:02:03.6]} 19. Nxd2 {[%clk 0:00:59.8]}
19... Rad8 {[%clk 0:02:02]} 20. Nf3 {[%clk 0:00:55.8]} 20... Bg4 {[%clk
0:01:54.1]} 21. Ne5 {[%clk 0:00:52]} 21... Rxd4 {[%clk 0:01:51.6]} 22. f3 {[%clk
0:00:51.7]} 22... Be6 {[%clk 0:01:43.6]} 23. Re2 {[%clk 0:00:32.8]} 23... Rfd8
{[%clk 0:01:40.1]} 24. Bc2 {[%clk 0:00:30.1]} 24... Rd2 {[%clk 0:01:33.1]} 25.
Kf2 {[%clk 0:00:30]} 25... Rxe2+ {[%clk 0:01:21.6]} 26. Kxe2 {[%clk 0:00:30.9]}
26... Re8 {[%clk 0:01:21]} 27. Kf2 {[%clk 0:00:28.3]} 27... Nd5 {[%clk
0:00:55.7]} 28. Nd3 {[%clk 0:00:24]} 28... Bf5 {[%clk 0:00:53]} 29. Rc1 {[%clk
0:00:22.8]} 29... Bxd3 {[%clk 0:00:44.7]} 30. Bxd3 {[%clk 0:00:23.7]} 30... Kf8
{[%clk 0:00:41]} 31. a3 {[%clk 0:00:23.1]} 31... h6 {[%clk 0:00:39]} 32. g3
{[%clk 0:00:23.3]} 32... Re3 {[%clk 0:00:36.7]} 33. Bc4 {[%clk 0:00:20.2]} 33...
Re7 {[%clk 0:00:35.6]} 34. Bxd5 {[%clk 0:00:20]} 34... cxd5 {[%clk 0:00:36.1]}
35. Rd1 {[%clk 0:00:18.1]} 35... Rd7 {[%clk 0:00:35.9]} 36. Ke3 {[%clk
0:00:18.4]} 36... Ke7 {[%clk 0:00:35.5]} 37. Kd4 {[%clk 0:00:18.5]} 37... Kd6
{[%clk 0:00:36.1]} 38. Rc1 {[%clk 0:00:16.9]} 38... b6 {[%clk 0:00:31.8]} 39.
Rc2 {[%clk 0:00:14.9]} 39... g5 {[%clk 0:00:29.6]} 40. f4 {[%clk 0:00:14.6]}
40... f6 {[%clk 0:00:29.5]} 41. fxg5 {[%clk 0:00:14.6]} 41... fxg5 {[%clk
0:00:26.8]} 42. Rf2 {[%clk 0:00:15.1]} 42... Re7 {[%clk 0:00:27.1]} 43. Rf6+
{[%clk 0:00:15]} 43... Re6 {[%clk 0:00:27.2]} 44. Rf8 {[%clk 0:00:13.4]} 44...
Re2 {[%clk 0:00:21.5]} 45. Rf6+ {[%clk 0:00:11.9]} 45... Re6 {[%clk 0:00:21.4]}
46. Rf8 {[%clk 0:00:11.6]} 46... Kc6 {[%clk 0:00:20.1]} 47. Rf2 {[%clk
0:00:10.7]} 47... a5 {[%clk 0:00:19.7]} 48. Rc2+ {[%clk 0:00:09.4]} 48... Kd6
{[%clk 0:00:19.7]} 49. Rf2 {[%clk 0:00:09.3]} 49... Re4+ {[%clk 0:00:19.6]} 50.
Kd3 {[%clk 0:00:08.9]} 50... Re6 {[%clk 0:00:19.8]} 51. Rd2 {[%clk 0:00:08]}
51... Kc5 {[%clk 0:00:18.8]} 52. Rf2 {[%clk 0:00:08.1]} 52... Kd6 {[%clk
0:00:17]} 53. Kd4 {[%clk 0:00:06.5]} 53... b5 {[%clk 0:00:17.4]} 54. Kd3 {[%clk
0:00:06.4]} 54... b4 {[%clk 0:00:16.5]} 55. axb4 {[%clk 0:00:05.9]} 55... axb4
{[%clk 0:00:16.9]} 56. Kd4 {[%clk 0:00:06.2]} 56... Re4+ {[%clk 0:00:16.3]} 57.
Kd3 {[%clk 0:00:06.5]} 57... Ke5 {[%clk 0:00:16.6]} 58. Rf8 {[%clk 0:00:06]}
58... h5 {[%clk 0:00:15.9]} 59. Re8+ {[%clk 0:00:06.2]} 59... Kf5 {[%clk
0:00:16.2]} 60. Rxe4 {[%clk 0:00:05]} 60... dxe4+ {[%clk 0:00:15.7]} 61. Ke3
{[%clk 0:00:05.2]} 61... h4 {[%clk 0:00:14.1]} 62. gxh4 {[%clk 0:00:04.2]} 62...
gxh4 {[%clk 0:00:14.4]} 63. h3 {[%clk 0:00:04.9]} 63... Ke5 {[%clk 0:00:14]} 64.
b3 {[%clk 0:00:05.2]} 64... Kd5 {[%clk 0:00:13.6]} 65. Ke2 {[%clk 0:00:05.2]}
65... Kd4 {[%clk 0:00:14.1]} 66. Kd2 {[%clk 0:00:05.6]} 66... e3+ {[%clk
0:00:14]} 0-1